[Event "Titled Tuesday Blitz June 15 2021"]
[White "Popilski, Gil"]
[Black "Liang, Jason"]
[WhiteFideId "2809060"]
[BlackFideId "30940303"]
[WhiteElo "2537"]
[BlackElo "1976"]
[Result "1-0"]
[Round "07"]
[TimeControl "180+1"]
[Date "2021.06.15"]
[WhiteClock "0:00:03"]
[BlackClock "0:00:09"]

1. e4 {[%clk 0:03:00]}  d6 {[%clk 0:02:54]} 2. d4 {[%clk 0:03:00]}  Nf6 {[%clk 0:02:54]} 3. Nc3 {[%clk 0:03:00]}  e6 {[%clk 0:02:55]} 4. f4 {[%clk 0:02:59]}  d5 {[%clk 0:02:53]} 5. e5 {[%clk 0:02:59]}  Ne4 {[%clk 0:02:53]} 6. Nf3 {[%clk 0:02:54]}  c5 {[%clk 0:02:50]} 7. Bd3 {[%clk 0:02:50]}  Nxc3 {[%clk 0:02:32]} 8. bxc3 {[%clk 0:02:49]}  Qa5 {[%clk 0:02:32]} 9. Bd2 {[%clk 0:02:47]}  b6 {[%clk 0:02:27]} 10. c4 {[%clk 0:02:16]}  Qa4 {[%clk 0:02:22]} 11. cxd5 {[%clk 0:02:16]}  exd5 {[%clk 0:02:23]} 12. c4 {[%clk 0:02:12]}  Qxd1+ {[%clk 0:02:22]} 13. Rxd1 {[%clk 0:02:13]}  Ba6 {[%clk 0:02:17]} 14. Be3 {[%clk 0:01:44]}  cxd4 {[%clk 0:02:12]} 15. Nxd4 {[%clk 0:01:34]}  Bb4+ {[%clk 0:02:06]} 16. Kf2 {[%clk 0:01:33]}  Bxc4 {[%clk 0:02:07]} 17. Bxc4 {[%clk 0:01:25]}  dxc4 {[%clk 0:02:07]} 18. Nb5 {[%clk 0:01:23]}  Na6 {[%clk 0:02:08]} 19. Rd4 {[%clk 0:01:18]}  c3 {[%clk 0:01:46]} 20. Rc1 {[%clk 0:01:01]}  O-O {[%clk 0:01:38]} 21. a3 {[%clk 0:00:54]}  Ba5 {[%clk 0:01:16]} 22. Rd7 {[%clk 0:00:50]}  Nb8 {[%clk 0:00:45]} 23. Rc7 {[%clk 0:00:33]}  Na6 {[%clk 0:00:42]} 24. Rd7 {[%clk 0:00:31]}  Nc5 {[%clk 0:00:33]} 25. Bxc5 {[%clk 0:00:29]}  bxc5 {[%clk 0:00:34]} 26. Nxc3 {[%clk 0:00:23]}  Rfb8 {[%clk 0:00:34]} 27. Ne4 {[%clk 0:00:18]}  Rb2+ {[%clk 0:00:35]} 28. Kf3 {[%clk 0:00:17]}  Rb3+ {[%clk 0:00:35]} 29. Kg4 {[%clk 0:00:17]}  Rxa3 {[%clk 0:00:33]} 30. Rxc5 {[%clk 0:00:17]}  Bb6 {[%clk 0:00:29]} 31. Rcd5 {[%clk 0:00:14]}  Re3 {[%clk 0:00:28]} 32. Nd6 {[%clk 0:00:13]}  Rf8 {[%clk 0:00:28]} 33. Nf5 {[%clk 0:00:11]}  Re2 {[%clk 0:00:27]} 34. g3 {[%clk 0:00:11]}  Rxh2 {[%clk 0:00:27]} 35. Rb7 {[%clk 0:00:10]}  g6 {[%clk 0:00:18]} 36. Ne7+ {[%clk 0:00:08]}  Kg7 {[%clk 0:00:18]} 37. Rdd7 {[%clk 0:00:07]}  Rf2 {[%clk 0:00:16]} 38. Nd5 {[%clk 0:00:07]}  h5+ {[%clk 0:00:16]} 39. Kh3 {[%clk 0:00:07]}  Kg8 {[%clk 0:00:07]} 40. Nf6+ {[%clk 0:00:03]}  Kg7 {[%clk 0:00:06]} 41. Ne4 {[%clk 0:00:03]}  Kg8 {[%clk 0:00:07]} 42. Nxf2 {[%clk 0:00:01]}  Bxf2 {[%clk 0:00:08]} 43. e6 {[%clk 0:00:02]}  fxe6 {[%clk 0:00:08]} 44. Rg7+ {[%clk 0:00:02]}  Kh8 {[%clk 0:00:08]} 45. Rh7+ {[%clk 0:00:03]}  Kg8 {[%clk 0:00:09]} 46. Rbg7# {[%clk 0:00:03]} 1-0


[Site "https://www.chess.com"]

[Event "Titled Tuesday Blitz June 15 2021"]
[White "Potapova, Margarita"]
[Black "Urazayev, Arystanbek"]
[WhiteFideId "14126869"]
[BlackFideId "13709810"]
[WhiteElo "2229"]
[BlackElo "2321"]
[Result "0-1"]
[Round "07"]
[TimeControl "180+1"]
[Date "2021.06.15"]
[WhiteClock "0:00:03"]
[BlackClock "0:00:38"]

1. d4 {[%clk 0:03:00]}  d5 {[%clk 0:03:00]} 2. c4 {[%clk 0:03:00]}  e6 {[%clk 0:03:00]} 3. Nf3 {[%clk 0:02:58]}  Nf6 {[%clk 0:03:01]} 4. g3 {[%clk 0:02:59]}  dxc4 {[%clk 0:03:01]} 5. Bg2 {[%clk 0:02:59]}  Bd7 {[%clk 0:03:02]} 6. O-O {[%clk 0:02:42]}  Bc6 {[%clk 0:03:02]} 7. Qd2 {[%clk 0:02:26]}  Nbd7 {[%clk 0:02:57]} 8. a4 {[%clk 0:02:21]}  a5 {[%clk 0:02:54]} 9. Nc3 {[%clk 0:02:10]}  Bb4 {[%clk 0:02:54]} 10. Qc2 {[%clk 0:02:04]}  O-O {[%clk 0:02:50]} 11. Rd1 {[%clk 0:02:04]}  Nb6 {[%clk 0:02:44]} 12. Bg5 {[%clk 0:01:58]}  h6 {[%clk 0:02:42]} 13. Bxf6 {[%clk 0:01:56]}  Qxf6 {[%clk 0:02:42]} 14. e4 {[%clk 0:01:56]}  Bxc3 {[%clk 0:02:42]} 15. bxc3 {[%clk 0:01:55]}  Rfd8 {[%clk 0:02:41]} 16. Ne5 {[%clk 0:01:53]}  Be8 {[%clk 0:02:41]} 17. f4 {[%clk 0:01:44]}  Qe7 {[%clk 0:02:41]} 18. Rdb1 {[%clk 0:01:36]}  f6 {[%clk 0:02:36]} 19. Ng4 {[%clk 0:01:30]}  Bc6 {[%clk 0:02:36]} 20. Ne3 {[%clk 0:01:29]}  Qd7 {[%clk 0:02:37]} 21. Bh3 {[%clk 0:01:26]}  Bxa4 {[%clk 0:02:36]} 22. Qe2 {[%clk 0:01:21]}  Qc6 {[%clk 0:02:29]} 23. d5 {[%clk 0:01:06]}  exd5 {[%clk 0:02:29]} 24. exd5 {[%clk 0:01:06]}  Qc5 {[%clk 0:02:22]} 25. Be6+ {[%clk 0:01:03]}  Kh8 {[%clk 0:02:23]} 26. Rxb6 {[%clk 0:00:56]}  cxb6 {[%clk 0:02:23]} 27. Rxa4 {[%clk 0:00:55]}  b5 {[%clk 0:02:24]} 28. Ra1 {[%clk 0:00:55]}  b4 {[%clk 0:02:24]} 29. Kg2 {[%clk 0:00:39]}  b5 {[%clk 0:02:22]} 30. Re1 {[%clk 0:00:32]}  bxc3 {[%clk 0:02:21]} 31. Qg4 {[%clk 0:00:32]}  Qf8 {[%clk 0:02:21]} 32. Qg6 {[%clk 0:00:31]}  b4 {[%clk 0:02:09]} 33. Bf5 {[%clk 0:00:30]}  Qg8 {[%clk 0:02:09]} 34. Ng4 {[%clk 0:00:28]}  Ra7 {[%clk 0:01:35]} 35. Nxf6 {[%clk 0:00:20]}  gxf6 {[%clk 0:01:33]} 36. Qxf6+ {[%clk 0:00:19]}  Rg7 {[%clk 0:01:29]} 37. Qxh6+ {[%clk 0:00:19]}  Rh7 {[%clk 0:01:29]} 38. Qf6+ {[%clk 0:00:17]}  Rg7 {[%clk 0:01:28]} 39. Re7 {[%clk 0:00:13]}  Qxd5+ {[%clk 0:01:10]} 40. Kh3 {[%clk 0:00:11]}  Qd4 {[%clk 0:00:47]} 41. Qh4+ {[%clk 0:00:10]}  Kg8 {[%clk 0:00:47]} 42. Be6+ {[%clk 0:00:10]}  Kf8 {[%clk 0:00:47]} 43. Rxg7 {[%clk 0:00:03]}  Kxg7 {[%clk 0:00:48]} 44. Qe7+ {[%clk 0:00:03]}  Kh8 {[%clk 0:00:42]} 45. Qh4+ {[%clk 0:00:03]}  Kg7 {[%clk 0:00:43]} 46. Qg5+ {[%clk 0:00:03]}  Kf8 {[%clk 0:00:41]} 47. Qh6+ {[%clk 0:00:03]}  Ke7 {[%clk 0:00:42]} 48. Bf5 {[%clk 0:00:02]}  Rh8 {[%clk 0:00:39]} 49. Bh7 {[%clk 0:00:03]}  Qf6 {[%clk 0:00:38]} 50. Qh5 {[%clk 0:00:02]}  c2 {[%clk 0:00:37]} 51. Qc5+ {[%clk 0:00:03]}  Kf7 {[%clk 0:00:37]} 52. Qc7+ {[%clk 0:00:03]}  Qe7 {[%clk 0:00:37]} 53. Qxc4+ {[%clk 0:00:03]}  Qe6+ {[%clk 0:00:38]} 0-1


[Site "https://www.chess.com"]

[Event "Titled Tuesday Blitz June 15 2021"]
[White "Rojas Alarcon, Julian Antonio"]
[Black "Nasyrova, Ekaterina"]
[WhiteFideId "5107407"]
[BlackFideId "44157797"]
[WhiteElo "2333"]
[BlackElo "2115"]
[Result "1-0"]
[Round "07"]
[TimeControl "180+1"]
[Date "2021.06.15"]
[WhiteClock "0:00:43"]
[BlackClock "0:00:02"]

1. c4 {[%clk 0:03:00]}  e6 {[%clk 0:02:59]} 2. Nc3 {[%clk 0:03:00]}  d5 {[%clk 0:03:00]} 3. d4 {[%clk 0:03:01]}  Nf6 {[%clk 0:02:59]} 4. Nf3 {[%clk 0:03:02]}  dxc4 {[%clk 0:02:59]} 5. e4 {[%clk 0:03:01]}  b5 {[%clk 0:02:59]} 6. Nxb5 {[%clk 0:02:55]}  Nxe4 {[%clk 0:02:59]} 7. Bxc4 {[%clk 0:02:55]}  Bb7 {[%clk 0:02:57]} 8. O-O {[%clk 0:02:55]}  Be7 {[%clk 0:02:52]} 9. Nc3 {[%clk 0:02:53]}  O-O {[%clk 0:02:45]} 10. Bd3 {[%clk 0:02:49]}  Nf6 {[%clk 0:02:39]} 11. Ne5 {[%clk 0:02:46]}  Nc6 {[%clk 0:02:19]} 12. Be3 {[%clk 0:02:32]}  Nb4 {[%clk 0:02:14]} 13. Be2 {[%clk 0:02:27]}  Nbd5 {[%clk 0:02:14]} 14. Bf3 {[%clk 0:02:26]}  Nxc3 {[%clk 0:02:03]} 15. bxc3 {[%clk 0:02:23]}  Bxf3 {[%clk 0:02:03]} 16. Qxf3 {[%clk 0:02:22]}  Qd5 {[%clk 0:02:02]} 17. Rab1 {[%clk 0:02:10]}  Qxf3 {[%clk 0:01:57]} 18. gxf3 {[%clk 0:02:08]}  Nd5 {[%clk 0:01:52]} 19. Bd2 {[%clk 0:02:06]}  Bf6 {[%clk 0:01:52]} 20. Nc6 {[%clk 0:02:05]}  Nb6 {[%clk 0:01:44]} 21. Bf4 {[%clk 0:02:00]}  Nd5 {[%clk 0:01:39]} 22. Bd2 {[%clk 0:01:58]}  Ne7 {[%clk 0:01:39]} 23. Na5 {[%clk 0:01:45]}  Rab8 {[%clk 0:01:37]} 24. Rb3 {[%clk 0:01:38]}  Rb6 {[%clk 0:01:33]} 25. Nc4 {[%clk 0:01:34]}  Rc6 {[%clk 0:01:26]} 26. Ne3 {[%clk 0:01:29]}  Ra6 {[%clk 0:01:20]} 27. a3 {[%clk 0:01:21]}  Rb6 {[%clk 0:01:20]} 28. Rfb1 {[%clk 0:01:17]}  Rfb8 {[%clk 0:01:18]} 29. Rxb6 {[%clk 0:01:05]}  axb6 {[%clk 0:01:17]} 30. Kf1 {[%clk 0:01:04]}  Ra8 {[%clk 0:01:17]} 31. Bc1 {[%clk 0:01:04]}  Nc6 {[%clk 0:01:14]} 32. Ke1 {[%clk 0:01:03]}  e5 {[%clk 0:01:07]} 33. d5 {[%clk 0:01:01]}  Na5 {[%clk 0:01:06]} 34. Kd2 {[%clk 0:01:00]}  Nb7 {[%clk 0:01:06]} 35. Kd3 {[%clk 0:00:58]}  Nc5+ {[%clk 0:01:04]} 36. Kc4 {[%clk 0:00:58]}  Ra4+ {[%clk 0:01:04]} 37. Kb5 {[%clk 0:00:59]}  Be7 {[%clk 0:00:55]} 38. Kc6 {[%clk 0:00:55]}  Bd6 {[%clk 0:00:51]} 39. Rb4 {[%clk 0:00:54]}  Rxb4 {[%clk 0:00:26]} 40. cxb4 {[%clk 0:00:55]}  Nd3 {[%clk 0:00:27]} 41. Bd2 {[%clk 0:00:55]}  Kf8 {[%clk 0:00:16]} 42. Nc4 {[%clk 0:00:50]}  Ke7 {[%clk 0:00:15]} 43. Nxd6 {[%clk 0:00:49]}  cxd6 {[%clk 0:00:16]} 44. Kxb6 {[%clk 0:00:50]}  Nxf2 {[%clk 0:00:15]} 45. a4 {[%clk 0:00:49]}  e4 {[%clk 0:00:13]} 46. fxe4 {[%clk 0:00:48]}  Nxe4 {[%clk 0:00:13]} 47. Be1 {[%clk 0:00:49]}  Kd7 {[%clk 0:00:10]} 48. Kb7 {[%clk 0:00:47]}  Nf6 {[%clk 0:00:10]} 49. a5 {[%clk 0:00:46]}  Nxd5 {[%clk 0:00:10]} 50. b5 {[%clk 0:00:45]}  Ne7 {[%clk 0:00:02]} 51. a6 {[%clk 0:00:45]}  Nc8 {[%clk 0:00:02]} 52. a7 {[%clk 0:00:42]}  Nxa7 {[%clk 0:00:02]} 53. Kxa7 {[%clk 0:00:43]} 1-0


[Site "https://www.chess.com"]

[Event "Titled Tuesday Blitz June 15 2021"]
[White "Shahade, Gregory"]
[Black "Madaminov, Mukhiddin"]
[WhiteFideId "2009064"]
[BlackFideId "14210703"]
[WhiteElo "2720"]
[BlackElo "1747"]
[Result "1-0"]
[Round "07"]
[TimeControl "180+1"]
[Date "2021.06.15"]
[WhiteClock "0:00:06"]
[BlackClock "0:00:02"]

1. e4 {[%clk 0:03:00]}  e6 {[%clk 0:02:59]} 2. d4 {[%clk 0:03:00]}  d5 {[%clk 0:02:59]} 3. Nd2 {[%clk 0:03:01]}  c5 {[%clk 0:02:59]} 4. exd5 {[%clk 0:03:01]}  Qxd5 {[%clk 0:03:00]} 5. Ngf3 {[%clk 0:03:01]}  cxd4 {[%clk 0:03:01]} 6. Bc4 {[%clk 0:03:01]}  Qd7 {[%clk 0:03:01]} 7. Nb3 {[%clk 0:03:00]}  Nc6 {[%clk 0:03:01]} 8. Nbxd4 {[%clk 0:03:00]}  Nxd4 {[%clk 0:03:02]} 9. Nxd4 {[%clk 0:03:00]}  a6 {[%clk 0:02:59]} 10. Bf4 {[%clk 0:03:00]}  Nf6 {[%clk 0:02:56]} 11. O-O {[%clk 0:02:57]}  Be7 {[%clk 0:02:50]} 12. Be5 {[%clk 0:02:53]}  b5 {[%clk 0:02:42]} 13. Bd3 {[%clk 0:02:52]}  O-O {[%clk 0:02:40]} 14. Qf3 {[%clk 0:02:51]}  Bb7 {[%clk 0:02:39]} 15. Qh3 {[%clk 0:02:51]}  h6 {[%clk 0:02:37]} 16. Rad1 {[%clk 0:02:50]}  Rfd8 {[%clk 0:02:27]} 17. Rfe1 {[%clk 0:02:36]}  Rac8 {[%clk 0:02:20]} 18. Re3 {[%clk 0:02:19]}  Rc5 {[%clk 0:02:13]} 19. c3 {[%clk 0:01:32]}  b4 {[%clk 0:02:11]} 20. Nb3 {[%clk 0:01:26]}  Rc4 {[%clk 0:01:05]} 21. Bh7+ {[%clk 0:01:12]}  Kxh7 {[%clk 0:01:05]} 22. Rxd7 {[%clk 0:01:12]}  Rxd7 {[%clk 0:01:05]} 23. Rd3 {[%clk 0:01:09]}  Re4 {[%clk 0:01:05]} 24. f4 {[%clk 0:01:03]}  bxc3 {[%clk 0:00:31]} 25. bxc3 {[%clk 0:00:54]}  Rxd3 {[%clk 0:00:24]} 26. Qxd3 {[%clk 0:00:54]}  Ng4 {[%clk 0:00:24]} 27. Nd2 {[%clk 0:00:27]}  Bc5+ {[%clk 0:00:16]} 28. Bd4 {[%clk 0:00:27]}  Bxd4+ {[%clk 0:00:15]} 29. cxd4 {[%clk 0:00:27]}  Nf6 {[%clk 0:00:16]} 30. Nxe4 {[%clk 0:00:25]}  Nxe4 {[%clk 0:00:17]} 31. Qb3 {[%clk 0:00:19]}  Bd5 {[%clk 0:00:17]} 32. Qb6 {[%clk 0:00:20]}  Bxa2 {[%clk 0:00:14]} 33. Qxa6 {[%clk 0:00:20]}  Bd5 {[%clk 0:00:14]} 34. Qa7 {[%clk 0:00:20]}  f5 {[%clk 0:00:13]} 35. Qe7 {[%clk 0:00:19]}  Nf6 {[%clk 0:00:12]} 36. Qd6 {[%clk 0:00:19]}  Ne4 {[%clk 0:00:11]} 37. Qe5 {[%clk 0:00:19]}  Nf6 {[%clk 0:00:12]} 38. g3 {[%clk 0:00:18]}  Kg6 {[%clk 0:00:12]} 39. Kf1 {[%clk 0:00:16]}  Ng4 {[%clk 0:00:11]} 40. Qb8 {[%clk 0:00:11]}  Nxh2+ {[%clk 0:00:11]} 41. Ke2 {[%clk 0:00:10]}  Kh7 {[%clk 0:00:08]} 42. Qc7 {[%clk 0:00:09]}  Ng4 {[%clk 0:00:08]} 43. Qb8 {[%clk 0:00:08]}  Nf6 {[%clk 0:00:09]} 44. Qe5 {[%clk 0:00:07]}  Ne4 {[%clk 0:00:08]} 45. g4 {[%clk 0:00:07]}  Bc4+ {[%clk 0:00:02]} 46. Ke3 {[%clk 0:00:07]}  Ng3 {[%clk 0:00:02]} 47. g5 {[%clk 0:00:04]}  Ne4 {[%clk 0:00:01]} 48. gxh6 {[%clk 0:00:04]}  Kxh6 {[%clk 0:00:02]} 49. Qb8 {[%clk 0:00:04]}  Bd5 {[%clk 0:00:03]} 50. Qh8+ {[%clk 0:00:04]}  Kg6 {[%clk 0:00:03]} 51. Qe8+ {[%clk 0:00:04]}  Kh7 {[%clk 0:00:04]} 52. Qh5+ {[%clk 0:00:03]}  Kg8 {[%clk 0:00:04]} 53. Qe8+ {[%clk 0:00:03]}  Kh7 {[%clk 0:00:05]} 54. Qh5+ {[%clk 0:00:03]}  Kg8 {[%clk 0:00:06]} 55. Kd3 {[%clk 0:00:03]}  Nf6 {[%clk 0:00:05]} 56. Qg6 {[%clk 0:00:02]}  Kf8 {[%clk 0:00:06]} 57. Ke3 {[%clk 0:00:03]}  Be4 {[%clk 0:00:06]} 58. Qg1 {[%clk 0:00:03]}  Nd5+ {[%clk 0:00:06]} 59. Kd2 {[%clk 0:00:02]}  Nxf4 {[%clk 0:00:07]} 60. Qg5 {[%clk 0:00:02]}  Nd5 {[%clk 0:00:06]} 61. Qd8+ {[%clk 0:00:03]}  Kf7 {[%clk 0:00:07]} 62. Qd7+ {[%clk 0:00:04]}  Ne7 {[%clk 0:00:07]} 63. Qd8 {[%clk 0:00:04]}  Bd5 {[%clk 0:00:07]} 64. Qd6 {[%clk 0:00:04]}  g5 {[%clk 0:00:07]} 65. Qe5 {[%clk 0:00:04]}  Ng6 {[%clk 0:00:05]} 66. Qc7+ {[%clk 0:00:04]}  Ne7 {[%clk 0:00:04]} 67. Qe5 {[%clk 0:00:04]}  Kg6 {[%clk 0:00:04]} 68. Qh8 {[%clk 0:00:04]}  f4 {[%clk 0:00:03]} 69. Qe8+ {[%clk 0:00:04]}  Kf6 {[%clk 0:00:01]} 70. Qf8+ {[%clk 0:00:05]}  Kg6 {[%clk 0:00:01]} 71. Qxe7 {[%clk 0:00:05]}  Kf5 {[%clk 0:00:02]} 72. Qf7+ {[%clk 0:00:06]}  Ke4 {[%clk 0:00:01]} 73. Qf6 {[%clk 0:00:06]}  g4 {[%clk 0:00:01]} 74. Ke2 {[%clk 0:00:06]}  g3 {[%clk 0:00:02]} 75. Qe5# {[%clk 0:00:06]} 1-0


[Site "https://www.chess.com"]

[Event "Titled Tuesday Blitz June 15 2021"]
[White "Shipov, Sergei"]
[Black "Jobava, Baadur"]
[WhiteFideId "4113624"]
[BlackFideId "13601520"]
[WhiteElo "2792"]
[BlackElo "2748"]
[Result "0-1"]
[Round "07"]
[TimeControl "180+1"]
[Date "2021.06.15"]
[WhiteClock "0:00:03"]
[BlackClock "0:00:13"]

1. d4 {[%clk 0:03:00]}  d5 {[%clk 0:02:59]} 2. c4 {[%clk 0:03:00]}  c6 {[%clk 0:03:00]} 3. Nc3 {[%clk 0:03:00]}  Nf6 {[%clk 0:03:01]} 4. Nf3 {[%clk 0:03:00]}  dxc4 {[%clk 0:03:00]} 5. a4 {[%clk 0:02:59]}  a5 {[%clk 0:03:00]} 6. e4 {[%clk 0:02:58]}  Bg4 {[%clk 0:03:01]} 7. Bxc4 {[%clk 0:02:58]}  e6 {[%clk 0:03:01]} 8. Be3 {[%clk 0:02:58]}  Bb4 {[%clk 0:03:01]} 9. O-O {[%clk 0:02:53]}  Nbd7 {[%clk 0:02:55]} 10. h3 {[%clk 0:02:49]}  Bh5 {[%clk 0:02:55]} 11. e5 {[%clk 0:02:36]}  Nd5 {[%clk 0:02:55]} 12. Bd2 {[%clk 0:02:34]}  O-O {[%clk 0:02:46]} 13. Qe2 {[%clk 0:02:28]}  Bg6 {[%clk 0:02:18]} 14. Rfd1 {[%clk 0:02:10]}  Re8 {[%clk 0:02:17]} 15. Rac1 {[%clk 0:02:09]}  h6 {[%clk 0:02:14]} 16. Ne4 {[%clk 0:02:07]}  Bxe4 {[%clk 0:02:10]} 17. Qxe4 {[%clk 0:02:06]}  Bxd2 {[%clk 0:02:11]} 18. Rxd2 {[%clk 0:02:05]}  Nf8 {[%clk 0:02:09]} 19. h4 {[%clk 0:02:01]}  Qb6 {[%clk 0:02:08]} 20. b3 {[%clk 0:02:00]}  Rad8 {[%clk 0:02:08]} 21. g3 {[%clk 0:01:58]}  Qb4 {[%clk 0:02:08]} 22. Qc2 {[%clk 0:01:52]}  Rd7 {[%clk 0:02:02]} 23. Ne1 {[%clk 0:01:50]}  Qb6 {[%clk 0:02:00]} 24. Qe4 {[%clk 0:01:50]}  Nb4 {[%clk 0:01:57]} 25. Rcd1 {[%clk 0:01:46]}  Red8 {[%clk 0:01:57]} 26. Kg2 {[%clk 0:01:45]}  Nd5 {[%clk 0:01:54]} 27. Qc2 {[%clk 0:01:40]}  Ne7 {[%clk 0:01:51]} 28. Nf3 {[%clk 0:01:34]}  Qb4 {[%clk 0:01:51]} 29. h5 {[%clk 0:01:33]}  b5 {[%clk 0:01:50]} 30. Bd3 {[%clk 0:01:28]}  Nd5 {[%clk 0:01:44]} 31. Rc1 {[%clk 0:01:27]}  Rc7 {[%clk 0:01:39]} 32. Be4 {[%clk 0:01:24]}  Rb8 {[%clk 0:01:22]} 33. Rd3 {[%clk 0:01:15]}  Qe7 {[%clk 0:01:18]} 34. Qc5 {[%clk 0:01:13]}  Qxc5 {[%clk 0:01:17]} 35. Rxc5 {[%clk 0:01:13]}  Nd7 {[%clk 0:01:17]} 36. Rc1 {[%clk 0:01:12]}  bxa4 {[%clk 0:01:18]} 37. bxa4 {[%clk 0:01:12]}  Rb4 {[%clk 0:01:18]} 38. Rd2 {[%clk 0:01:00]}  Rxa4 {[%clk 0:01:13]} 39. Bxd5 {[%clk 0:00:54]}  exd5 {[%clk 0:01:12]} 40. Nh4 {[%clk 0:00:54]}  Nb6 {[%clk 0:01:05]} 41. Nf5 {[%clk 0:00:54]}  Nc4 {[%clk 0:01:05]} 42. Re2 {[%clk 0:00:49]}  Rb4 {[%clk 0:00:37]} 43. e6 {[%clk 0:00:38]}  fxe6 {[%clk 0:00:38]} 44. Rxe6 {[%clk 0:00:38]}  Rb8 {[%clk 0:00:37]} 45. Rce1 {[%clk 0:00:10]}  Kh7 {[%clk 0:00:37]} 46. Ne7 {[%clk 0:00:09]}  Re8 {[%clk 0:00:33]} 47. Nxc6 {[%clk 0:00:08]}  Rxe6 {[%clk 0:00:34]} 48. Rxe6 {[%clk 0:00:08]}  a4 {[%clk 0:00:34]} 49. Ne7 {[%clk 0:00:08]}  a3 {[%clk 0:00:33]} 50. Ng6 {[%clk 0:00:08]}  Kg8 {[%clk 0:00:26]} 51. Re8+ {[%clk 0:00:06]}  Kf7 {[%clk 0:00:26]} 52. Ra8 {[%clk 0:00:06]}  Rd7 {[%clk 0:00:15]} 53. f4 {[%clk 0:00:06]}  Ke6 {[%clk 0:00:15]} 54. g4 {[%clk 0:00:05]}  Rb7 {[%clk 0:00:14]} 55. g5 {[%clk 0:00:03]}  Kf5 {[%clk 0:00:13]} 56. Kf3 {[%clk 0:00:02]}  Rb3+ {[%clk 0:00:12]} 57. Kf2 {[%clk 0:00:03]}  hxg5 {[%clk 0:00:13]} 0-1


[Site "https://www.chess.com"]

[Event "Titled Tuesday Blitz June 15 2021"]
[White "Siddharth, Jagadeesh"]
[Black "Shkapenko, Pavel"]
[WhiteFideId "5818320"]
[BlackFideId "4151933"]
[WhiteElo "2127"]
[BlackElo "2386"]
[Result "1-0"]
[Round "07"]
[TimeControl "180+1"]
[Date "2021.06.15"]
[WhiteClock "0:00:10"]
[BlackClock "0:00:32"]

1. e4 {[%clk 0:03:00]}  e5 {[%clk 0:02:59]} 2. Nf3 {[%clk 0:03:00]}  Nc6 {[%clk 0:02:59]} 3. Bb5 {[%clk 0:02:59]}  Bc5 {[%clk 0:02:59]} 4. c3 {[%clk 0:02:52]}  f5 {[%clk 0:02:59]} 5. Qe2 {[%clk 0:02:26]}  fxe4 {[%clk 0:02:48]} 6. Qxe4 {[%clk 0:02:26]}  Nf6 {[%clk 0:02:48]} 7. Qe2 {[%clk 0:02:26]}  O-O {[%clk 0:02:45]} 8. Qc4+ {[%clk 0:02:23]}  d5 {[%clk 0:02:42]} 9. Qxc5 {[%clk 0:02:23]}  e4 {[%clk 0:02:38]} 10. Ng1 {[%clk 0:01:57]}  Ne5 {[%clk 0:02:37]} 11. d4 {[%clk 0:01:17]}  exd3 {[%clk 0:02:20]} 12. Be3 {[%clk 0:01:13]}  c6 {[%clk 0:02:14]} 13. Ba4 {[%clk 0:01:10]}  Nfg4 {[%clk 0:02:03]} 14. Qd4 {[%clk 0:00:36]}  Nc4 {[%clk 0:01:41]} 15. Nf3 {[%clk 0:00:29]}  Nxb2 {[%clk 0:01:16]} 16. Bb3 {[%clk 0:00:22]}  Qc7 {[%clk 0:00:59]} 17. Nbd2 {[%clk 0:00:16]}  Bf5 {[%clk 0:00:54]} 18. Rb1 {[%clk 0:00:15]}  Nc4 {[%clk 0:00:50]} 19. Bxc4 {[%clk 0:00:13]}  dxc4 {[%clk 0:00:50]} 20. Qxc4+ {[%clk 0:00:14]}  Kh8 {[%clk 0:00:50]} 21. O-O {[%clk 0:00:14]}  Rae8 {[%clk 0:00:44]} 22. Qd4 {[%clk 0:00:12]}  b6 {[%clk 0:00:43]} 23. h3 {[%clk 0:00:10]}  Nf6 {[%clk 0:00:40]} 24. Rfe1 {[%clk 0:00:08]}  c5 {[%clk 0:00:39]} 25. Qf4 {[%clk 0:00:08]}  Qc8 {[%clk 0:00:39]} 26. c4 {[%clk 0:00:08]}  Bg6 {[%clk 0:00:39]} 27. Qg5 {[%clk 0:00:06]}  Ne4 {[%clk 0:00:38]} 28. Nxe4 {[%clk 0:00:06]}  Bxe4 {[%clk 0:00:39]} 29. Nd2 {[%clk 0:00:07]}  Bb7 {[%clk 0:00:39]} 30. Bf4 {[%clk 0:00:05]}  Qc6 {[%clk 0:00:34]} 31. f3 {[%clk 0:00:05]}  Re6 {[%clk 0:00:32]} 32. Rxe6 {[%clk 0:00:05]}  Qxe6 {[%clk 0:00:33]} 33. Qg3 {[%clk 0:00:05]}  Qf6 {[%clk 0:00:31]} 34. Be5 {[%clk 0:00:04]}  Qf7 {[%clk 0:00:32]} 35. Re1 {[%clk 0:00:04]}  Kg8 {[%clk 0:00:31]} 36. Bc3 {[%clk 0:00:05]}  g6 {[%clk 0:00:29]} 37. Qe5 {[%clk 0:00:05]}  Qf6 {[%clk 0:00:29]} 38. Qxf6 {[%clk 0:00:05]}  Rxf6 {[%clk 0:00:30]} 39. Bxf6 {[%clk 0:00:06]}  Kf7 {[%clk 0:00:31]} 40. Bc3 {[%clk 0:00:06]}  Bc6 {[%clk 0:00:31]} 41. Ne4 {[%clk 0:00:07]}  Ke6 {[%clk 0:00:31]} 42. Rd1 {[%clk 0:00:08]}  Kf5 {[%clk 0:00:30]} 43. Rxd3 {[%clk 0:00:08]}  Bxe4 {[%clk 0:00:30]} 44. fxe4+ {[%clk 0:00:09]}  Kxe4 {[%clk 0:00:31]} 45. Rd7 {[%clk 0:00:10]}  b5 {[%clk 0:00:32]} 46. cxb5 {[%clk 0:00:10]} 1-0


[Site "https://www.chess.com"]

[Event "Titled Tuesday Blitz June 15 2021"]
[White "Skatchkov, Pavel"]
[Black "Svane, Frederik"]
[WhiteFideId "4121848"]
[BlackFideId "12923044"]
[WhiteElo "2476"]
[BlackElo "2459"]
[Result "0-1"]
[Round "07"]
[TimeControl "180+1"]
[Date "2021.06.15"]
[WhiteClock "0:00:49"]
[BlackClock "0:00:46"]

1. d4 {[%clk 0:03:00]}  Nf6 {[%clk 0:03:00]} 2. c4 {[%clk 0:03:01]}  e6 {[%clk 0:03:00]} 3. Nf3 {[%clk 0:03:01]}  b6 {[%clk 0:02:59]} 4. g3 {[%clk 0:03:01]}  Bb4+ {[%clk 0:03:00]} 5. Bd2 {[%clk 0:02:59]}  Be7 {[%clk 0:03:00]} 6. Bg2 {[%clk 0:03:00]}  Bb7 {[%clk 0:03:00]} 7. O-O {[%clk 0:03:00]}  O-O {[%clk 0:03:01]} 8. Nc3 {[%clk 0:02:59]}  c6 {[%clk 0:03:02]} 9. e4 {[%clk 0:02:58]}  d5 {[%clk 0:03:02]} 10. Qe2 {[%clk 0:02:48]}  dxc4 {[%clk 0:02:53]} 11. Rad1 {[%clk 0:02:42]}  b5 {[%clk 0:02:50]} 12. a3 {[%clk 0:02:41]}  Nbd7 {[%clk 0:02:44]} 13. Bf4 {[%clk 0:02:35]}  Nb6 {[%clk 0:02:41]} 14. Be3 {[%clk 0:02:33]}  a5 {[%clk 0:02:38]} 15. Ne5 {[%clk 0:02:33]}  Qc7 {[%clk 0:02:17]} 16. f4 {[%clk 0:02:32]}  b4 {[%clk 0:02:08]} 17. Nb1 {[%clk 0:02:31]}  c5 {[%clk 0:02:08]} 18. Nd2 {[%clk 0:01:01]}  cxd4 {[%clk 0:01:58]} 19. Bxd4 {[%clk 0:01:02]}  Rfd8 {[%clk 0:01:48]} 20. Ndxc4 {[%clk 0:00:56]}  Nxc4 {[%clk 0:01:36]} 21. Nxc4 {[%clk 0:00:56]}  Rxd4 {[%clk 0:01:30]} 22. Rxd4 {[%clk 0:00:56]}  Bc5 {[%clk 0:01:30]} 23. Rd1 {[%clk 0:00:56]}  Rd8 {[%clk 0:00:56]} 24. Qf2 {[%clk 0:00:52]}  Rxd4 {[%clk 0:00:54]} 25. Rxd4 {[%clk 0:00:53]}  Ng4 {[%clk 0:00:55]} 26. Qd2 {[%clk 0:00:49]}  Qd8 {[%clk 0:00:46]} 0-1


[Site "https://www.chess.com"]